Cogmind - Beta 15 @@@ ROGUE MODE // 2025.09.11 @ 16:26:17 Player: celerysam Result: Destroyed by 5K-QZQ(g) with Beamcaster Performance ------------- Evolutions (0) 0 Regions Visited (3) 600 Robots Destroyed (14) 70 Value Destroyed (579) 579 Prototype IDs (12) 240 Alien Tech Used (0) 0 Bonus (790) 790 TOTAL SCORE: 2279 Bonus ------- Registered with UFD 300 Met Optimus in HQ 500 Friendly Fire -10 Cogmind --------- Core Integrity 0/250 Matter 231/300 Energy 138/140 System Corruption 0% Temperature Hot (225) Movement Rolling (115) Ox1 Location -8/Scraptown Parts ------- > --- POWER (1) -------- Light Deuterium Engine > --- PROPULSION (2) --- Compact Wheel Compact Wheel > --- UTILITY (2) ------ High-capacity Storage Unit Makeshift Light Armor Plating > --- WEAPON (2) ------- Gatling Laser Improved Grenade Launcher > --- INVENTORY (20) --- Assembled Alloy Leg Ballwheel Scrap Suit Cooling System Experimental Terrain Scanner Makeshift ECM Suite Improved Reaction Control System Scrapoid Pod Improved Datajack Junk Cannon Makeshift Spear Large Botcube Peak State ------------ > --- POWER ------------ Light Deuterium Engine > --- PROPULSION ------- Compact Wheel Compact Wheel > --- UTILITY ---------- High-capacity Storage Unit Makeshift Light Armor Plating > --- WEAPON ----------- Gatling Laser Improved Grenade Launcher > --- INVENTORY -------- Assembled Alloy Leg Ballwheel Scrap Suit Cooling System Experimental Terrain Scanner Makeshift ECM Suite Improved Reaction Control System Scrapoid Pod Improved Datajack Junk Cannon Makeshift Spear Large Botcube [Rating: 28] Favorites ----------- Power Ion Engine Engine Ion Engine Propulsion Compact Wheel Leg Aluminum Leg Wheel Compact Wheel Utility Makeshift Light Armor Plating Device Improved Heat Sink Storage Small Storage Unit Protection Makeshift Light Armor Plating Weapon Improved Datajack Energy Gun Medium Laser Ballistic Gun Light Assault Rifle Ballistic Cannon Improved Light Cannon Launcher Improved Grenade Launcher Special Melee Weapon Improved Datajack Build | -11 -10 -10 -8 ------- Run | Yrd Mat Sub Scr Slots Evolved . | . . . . Power . | . . . . Propulsion . | . . . . Utility . | . . . . Weapon . | . . . . Parts Attached 25 | 6 2 4 13 Power 4 | 1 1 1 1 Engine 4 | 1 1 1 1 Core . | . . . . Reactor . | . . . . Propulsion 8 | 2 . . 6 Treads . | . . . . Leg 5 | 2 . . 3 Wheel 3 | . . . 3 Hover . | . . . . Flight . | . . . . Utility 4 | 1 1 1 1 Device 1 | . 1 . . Storage 2 | 1 . . 1 Processor . | . . . . Hackware . | . . . . Protection 1 | . . 1 . Artifact . | . . . . Weapon 9 | 2 . 2 5 Energy Gun 3 | 1 . 1 1 Energy Cannon . | . . . . Ballistic Gun 2 | 1 . . 1 Ballistic Cannon 2 | . . 1 1 Launcher 1 | . . . 1 Special Weapon . | . . . . Impact Weapon . | . . . . Slashing Weapon . | . . . . Piercing Weapon . | . . . . Special Melee Weapon 1 | . . . 1 Unidentified Prototypes . | . . . . Parts Lost 3 | . . 2 1 Power 1 | . . 1 . Propulsion . | . . . . Utility 1 | . . 1 . Weapon 1 | . . . 1 Highest Loss Streak 1 | . . 1 1 To Critical Strikes . | . . . . Average Backups 9 | 4 7 7 10 Power . | . 1 . . Propulsion 3 | 3 4 3 3 Utility 2 | . . . 3 Weapon 2 | . 1 2 3 Tool/Special . | . . . . Unused Backups 22 | . . 3 19 Power 1 | . . 1 . Propulsion 7 | . . 2 5 Utility 7 | . . . 7 Weapon 5 | . . . 5 Tool/Special 2 | . . . 2 Average Slot Usage (%) 98 | . 95 91 99 Engine 13 | . 14 12 14 Leg 14 | . 28 28 9 Wheel 13 | . . . 18 Device 1 | . 10 7 . Storage 14 | . 14 14 14 Protection 10 | . . . 14 Energy Gun 6 | . 14 21 1 Ballistic Gun 2 | . 14 3 . Ballistic Cannon 10 | . . 2 13 Special Melee Weapon 7 | . . . 10 Peak Build Rating 28 | 6 9 12 28 Average Rating 16 | 3 8 9 19 On Entrance 6 | . 6 9 12 Naked Turns . | . . . . Heaviest Build 59 | 11 14 19 59 Greatest Support 36 | 20 20 20 36 Greatest Overweight (x) 3 | . . . 3 Average Overweight (x) . | . . . . Largest Inventory Capacity 20 | 8 8 8 20 Average Capacity 13 | 6 8 8 15 Most Carried 20 | 7 8 8 20 Average Carried 11 | 4 7 7 13 Final Capacity 20 | 8 8 8 20 Final Carried 19 | 6 8 8 19 Class Distribution -------------------- 95% | Mutant 4% | Derelict-Mutant Dominant Class ---------------- Mutant | -10/Materials Mutant | -10/Subcaves Mutant | -8/Scraptown Resources | -11 -10 -10 -8 ----------- Run | Yrd Mat Sub Scr Matter Collected 474 | 227 45 37 165 Remotely . | . . . . Salvage Created 635 | . 106 176 353 Parts 39 | . 7 9 23 Haulers Intercepted . | . . . . Recyclers Shooed . | . . . . Parts Field Recycled . | . . . . Retrieved Matter . | . . . . Parts Self-Destructed 5 | . . 5 . Prevented . | . . . . Kills | -11 -10 -10 -8 ------- Run | Yrd Mat Sub Scr Combat Hostiles Destroyed 13 | . 2 4 7 Guns 6 | . 2 4 . Cannons 1 | . . . 1 AOE 6 | . . . 6 Classes Destroyed 7 | . 1 1 5 Turret 1 | . . . 1 Grunt 2 | . 2 . . Subdweller 4 | . . 4 . Federalist 1 | . . . 1 Explorer 1 | . . . 1 Guru 1 | . . . 1 Scrapper 4 | . . . 4 Best Kill Streak 7 | . 2 1 7 Combat Bots Only 7 | . 2 1 7 Max Kills in Single Turn 2 | . 2 1 2 Gunslinging 1 | . 1 . . Exploded 2 | . . . 2 Melee . | . . . . Uniques/NPCs Destroyed . | . . . . Combat | -11 -10 -10 -8 -------- Run | Yrd Mat Sub Scr Hostile Shots Fired 61 | . . 36 25 Missed 20 | . . 13 7 Hits 41 | . . 23 18 Projectile 41 | . . 23 18 Critical Strikes 2 | . . 1 1 Damage Taken 819 | . . 531 288 Core 259 | . . 199 60 Absorbed by Shields . | . . . . Core Remaining (%) 100 | 100 . . . Volleys Fired 47 | . 2 37 8 Largest 2 | . 2 2 2 Hottest 116 | . 70 115 116 Shots Fired 91 | . 4 74 13 Gun 80 | . 4 74 2 Cannon 6 | . . . 6 Launcher 5 | . . . 5 Special . | . . . . Kinetic 15 | . 2 7 6 Thermal 71 | . 2 67 2 Explosive 5 | . . . 5 Electromagnetic . | . . . . Robot Hit Streak 9 | . 4 9 3 Robot Miss Streak 5 | . . 5 2 Penetration Max . | . . . . Secondary Targets 1 | . 1 . . Max Gunslinging Chain 1 | . 1 . . Shots Hit Robots 45 | . 4 36 5 Core Hits 22 | . 3 7 12 Critical Kills . | . . . . Critical Parts Destroyed . | . . . . Critical Strikes . | . . . . Melee Attacks . | . . . . Impact . | . . . . Slashing . | . . . . Piercing . | . . . . Sneak Attacks . | . . . . Combat Hostiles . | . . . . Follow-up Attacks . | . . . . Damage Inflicted 812 | . 40 341 431 Guns 391 | . 40 341 10 Cannons 85 | . . . 85 Explosions 336 | . . . 336 Melee . | . . . . Ramming . | . . . . Kinetic 107 | . 16 6 85 Thermal 369 | . 24 335 10 Explosive 336 | . . . 336 Electromagnetic . | . . . . Impact . | . . . . Slashing . | . . . . Piercing . | . . . . Highest Corruption . | . . . . Average Corruption . | . . . . Corruption Purged . | . . . . Corruption Blocked . | . . . . Overload Shots . | . . . . Overflow Damage . | . . . . Projectiles . | . . . . Explosions . | . . . . Melee . | . . . . Knockbacks 1 | . . . 1 Impact . | . . . . Kinetic 1 | . . . 1 Secondary . | . . . . Self-Inflicted Damage . | . . . . Shots . | . . . . Rammed . | . . . . Targets Rammed . | . . . . Kicked . | . . . . Crushed . | . . . . Highest Temperature 302 | . 40 302 258 Average Temperature 111 | . 20 140 97 Received Heat Transfer 537 | . . 341 196 Siege Activations . | . . . . Martial Activations . | . . . . Shielding Activations . | . . . . Robots Disrupted . | . . . . Combat Hostiles . | . . . . Robots Corrupted . | . . . . Combat Hostiles . | . . . . Parts Fried . | . . . . Impact Corruptions . | . . . . Robots Melted . | . . . . Combat Hostiles . | . . . . Parts Melted 2 | . . 1 1 Heat Transferred 967 | . 74 888 5 Parts Sabotaged . | . . . . Parts Stolen . | . . . . Parts Stripped . | . . . . Power Chain Reactions . | . . . . Alert | -11 -10 -10 -8 ------- Run | Yrd Mat Sub Scr Maximum Alert Level . | . . . . Low Security (%) 100 | 100 100 . . Level 1 . | . . . . Level 2 . | . . . . Level 3 . | . . . . Level 4 . | . . . . Level 5 . | . . . . High Security . | . . . . Max Security . | . . . . Peak Influence 50 | . 50 . . Initial . | . . . . Average 7 | . 10 . . Influence Increases 50 | . 50 . . Destroy 0b10 Robot/C 40 | . 40 . . Destroy Leader 10 | . 10 . . Influence Decreases 50 | . 50 . . Time Decay 50 | . 50 . . Squads Dispatched 1 | . 1 . . Investigation . | . . . . Extermination . | . . . . Reinforcement 1 | . 1 . . Assault . | . . . . Garrison . | . . . . Intercept . | . . . . Searches Triggered . | . . . . Construction Impeded . | . . . . Haulers Reinforced . | . . . . Active Scanning Responses . | . . . . Cargo Convoy Interrupts . | . . . . Stealth | -11 -10 -10 -8 --------- Run | Yrd Mat Sub Scr Distress Signals . | . . . . Communications Jammed . | . . . . Distress Signals . | . . . . Times Spotted 29 | . 4 5 20 Peak Tracking Total 7 | . 2 2 7 Tactical Retreats . | . . . . Traps | -11 -10 -10 -8 ------- Run | Yrd Mat Sub Scr Traps Triggered . | . . . . Indirectly . | . . . . Trap Hack Attempts . | . . . . Triggered . | . . . . Disarmed . | . . . . Reprogrammed . | . . . . Reused . | . . . . Traps Extracted . | . . . . Installed . | . . . . Triggered . | . . . . Machines | -11 -10 -10 -8 ---------- Run | Yrd Mat Sub Scr Machines Disabled 4 | . . . 4 Max in Single Turn 4 | . . . 4 Machines Repaired . | . . . . Machines Dismantled . | . . . . Machines Sabotaged . | . . . . Overloaded Fab Kills . | . . . . Hacking | -11 -10 -10 -8 --------- Run | Yrd Mat Sub Scr Machines Accessed 9 | . 2 . 7 Terminals 2 | . 2 . . Fabricators . | . . . . Repair Stations . | . . . . Recycling Units . | . . . . Scanalyzers . | . . . . Garrison Access . | . . . . Total Hacks 44 | . 2 . 42 Successful 44 | . 2 . 42 Failed . | . . . . Catastrophic . | . . . . Database Lockouts . | . . . . Manual 2 | . 2 . . Terminals 2 | . 2 . . Fabricators . | . . . . Repair Stations . | . . . . Recycling Units . | . . . . Scanalyzers . | . . . . Garrison Access . | . . . . Terminal Hacks 42 | . . . 42 Record 41 | . . . 41 Proto ID Catalog 1 | . . . 1 Fabricator Hacks . | . . . . Repair Station Hacks . | . . . . Recycling Unit Hacks . | . . . . Scanalyzer . | . . . . Garrison Access Hacks . | . . . . Unauthorized Hacks 2 | . 2 . . Terminals 2 | . 2 . . Assimilate 2 | . 2 . . Fabricators . | . . . . Repair Stations . | . . . . Recycling Units . | . . . . Scanalyzers . | . . . . Garrison Access . | . . . . Data Cores Recovered . | . . . . Used . | . . . . Hacking Detections 1 | . 1 . . Full Trace Events . | . . . . Feedback Events . | . . . . Feedback Blocked . | . . . . Robot Schematics Acquired . | . . . . Robots Built . | . . . . Authchips . | . . . . Time . | . . . . Total Robot Build Rating . | . . . . Part Schematics Acquired . | . . . . Parts Built . | . . . . Authchips . | . . . . Time . | . . . . Total Part Build Rating . | . . . . Parts Repaired . | . . . . Time . | . . . . Parts Recycled . | . . . . Recycled Matter . | . . . . Retrieved Matter . | . . . . Retrieved Components . | . . . . Parts Scanalyzed . | . . . . Part Schematics Acquired . | . . . . Parts Damaged . | . . . . Bothacking | -11 -10 -10 -8 ------------ Run | Yrd Mat Sub Scr Used RIF Installer . | . . . . Robots Hacked . | . . . . Non-combat . | . . . . Combat . | . . . . Robot Hacks Applied . | . . . . Relay Couplers Released . | . . . . Fabnet Peak Effective % . | . . . . Robots Rewired . | . . . . Allies Hacked . | . . . . Hacks Repelled . | . . . . Allies | -11 -10 -10 -8 -------- Run | Yrd Mat Sub Scr Total Allies 1 | . 1 . . Largest Group 1 | . 1 1 1 Highest-Rated Group 10 | . 10 10 10 Highest-Rated Ally 10 | . 10 10 10 Total Orders . | . . . . Ally Attacks . | . . . . Total Damage . | . . . . Kills . | . . . . Allies Corrupted . | . . . . Allies Melted 1 | . . . 1 Intel | -11 -10 -10 -8 ------- Run | Yrd Mat Sub Scr Active Infowar (turns) . | . . . . Robot Analysis Total . | . . . . Derelict Logs Recovered 3 | . . 1 2 Drone Launches . | . . . . Drone Recoveries . | . . . . Exploration | -11 -10 -10 -8 ------------- Run | Yrd Mat Sub Scr Turns Passed 3284 | 64 200 612 2408 Spaces Moved 2504 | 52 151 397 1904 Core 19 | 19 . . . Treads . | . . . . Legs 1227 | 33 151 397 646 Wheels 1258 | . . . 1258 Hover . | . . . . Flight . | . . . . Fastest Speed 50 | 50 120 120 105 Average Speed 120 | 94 120 120 121 Slowest Speed 145 | 120 120 120 145 Overloaded Moves . | . . . . Propulsion Burnouts . | . . . . Robots Hopped . | . . . . Potential Cave-ins . | . . . . Cave-ins Triggered . | . . . . Exploration Rate (%) 37 | 3 27 30 90 Regions Visited 3 Branch Regions 2 Pre-discovered Areas 1 | . . 1 . Known Exits Taken . | . . . . Unknown Exits Taken 3 | 1 1 1 . Scrap Searched 7 | . . 1 6 Spaces Dug . | . . . . Terrain Destroyed 39 | . . . 39 Melee . | . . . . Projectile . | . . . . AOE 39 | . . . 39 Terrain Rammed . | . . . . Walls Destroyed . | . . . . Machines Disabled . | . . . . Actions | -11 -10 -10 -8 --------- Run | Yrd Mat Sub Scr Total 2684 | 64 166 460 1994 Wait 44 | . 8 17 19 Move 2501 | 51 150 396 1904 Hop . | . . . . Pick Up 37 | 7 3 3 24 Fast Attach 9 | 5 . 1 3 Attach 4 | 1 1 1 1 Detach . | . . . . Swap 13 | . 1 2 10 Drop 29 | . 1 3 25 Fire 47 | . 2 37 8 Melee . | . . . . Ram . | . . . . Kick . | . . . . Crush . | . . . . Escape Stasis . | . . . . Rewire . | . . . . Trap . | . . . . Miscellaneous . | . . . . Route ------- -11/Scrapyard -10/Materials -10/Subcaves (discovered 2 exits: *Scr x2) -8/Scraptown (discovered 2 exits: *Fac x2) History --------- Turn | Location | Event 11 | -11/Scrapyard | Discovered new exit (range 14) 65 | -11/Scrapyard | Entered Materials 66 | -10/Materials | Met a group of wandering Federalists 92 | -10/Materials | Discovered new exit (range 7) 265 | -10/Materials | Entered Subcaves 265 | -10/Subcaves | Accompanied by 1 ally 266 | -10/Subcaves | Continued accompanying wandering Federalists (5) 266 | -10/Subcaves | Approached by a straggling Scientist 308 | -10/Subcaves | Build established: Mutant 601 | -10/Subcaves | Core integrity fell below 50% 850 | -10/Subcaves | Scientist uncovered a shortcut to Scraptown 873 | -10/Subcaves | Shifting Twisted Machinery released Sub. Monowheel 877 | -10/Subcaves | Entered Scraptown 877 | -8/Scraptown | Accompanied by 1 ally 1031 | -8/Scraptown | Visited CPS Storage 1040 | -8/Scraptown | Visited Fellowship of the Rings 1076 | -8/Scraptown | Visited Shadow of the Wyrm 1386 | -8/Scraptown | Visited Cyclists 1415 | -8/Scraptown | Heard Great Nut preacher, LISTEN AND RECITE! 1429 | -8/Scraptown | Visited Awakened 1636 | -8/Scraptown | Discovered new exit (range 5) 1727 | -8/Scraptown | Scanned Subdweller tech in exchange for log data 1731 | -8/Scraptown | Learned location of 1 exit from Factory 1765 | -8/Scraptown | Visited Symbiants 1831 | -8/Scraptown | Visited UFD Registry 1831 | -8/Scraptown | Registered with UFD as "Wrenchbrain" 1857 | -8/Scraptown | Visited Scrapoid Pod Storage 1862 | -8/Scraptown | Found Scrapoid Pod 1883 | -8/Scraptown | Visited Botcube Research 1891 | -8/Scraptown | Found Lrg. Botcube 1920 | -8/Scraptown | Visited Curators Association 1969 | -8/Scraptown | Delivered Scrap Shield to a Scientist 2078 | -8/Scraptown | Visited Science Guys 2172 | -8/Scraptown | Visited Scrapoid Research Area 2262 | -8/Scraptown | Entered Cyclist Reading Room 2776 | -8/Scraptown | Visited Infowarlord's Domain 2781 | -8/Scraptown | Found Exp. Terrain Scanner 2818 | -8/Scraptown | Visited Junk Repository 2947 | -8/Scraptown | Visited Abandonware Association 2957 | -8/Scraptown | Learned abandonware demo "OVRCLOCK.EXE" 2982 | -8/Scraptown | Visited Junk Cannon Lab 2992 | -8/Scraptown | Found Prototype Special Weapon 3077 | -8/Scraptown | Met Optimus 3077 | -8/Scraptown | Accepted into 0bPrime 3131 | -8/Scraptown | Civil war broke out across Scraptown 3156 | -8/Scraptown | Core integrity fell below 20% 3177 | -8/Scraptown | Found Prototype Wheel 3205 | -8/Scraptown | Identified exit to Factory 3217 | -8/Scraptown | Found Scrap Suit 3218 | -8/Scraptown | Lost 11 allies 3285 | -8/Scraptown | Destroyed by 5K-QZQ(g) with Beamcaster Last Messages --------------- 03267_ AH-TFB(j) suffers critical hit (Burn). 03269_ Ovr. Pulse Rifle melted. 03269_ AH-TFB(j) destroyed. 03269_ EA-UUV(j) destroyed. 03273_ Imp. Light Cannon destroyed. 03274_ AP-XCY(j) cannibalizes VSS Leg to repair Ovr. Titanium Leg. 03276_ AP-XCY(j) cannibalizes Ovr. Titanium Leg to repair Ovr. Titanium Leg. 03276_ 6U-ERL(g) destroyed. 03276_ KH-A2S(x) destroyed. 03279_ IG-Q9S(p) destroyed. 03279_ LV-A8U(j) destroyed. 03280_ Y5-FLB(j) cannibalizes Ovr. Titanium Leg to repair Ovr. Titanium Leg. 03281_ The unstable cave ceiling collapses. 03281_ Ovr. Titanium Leg crushed. 03282_ The unstable cave ceiling collapses. 03282_ Scrap Suit crushed. 03284_ AP-XCY(j) destroyed. Map ----- +----------------------------------------------------+ | | | | | | | | | ?????????????????????????????????????????????????? | | ?????????????????????????????????????????????????? | | ?????????????????????????????????????????????????? | | ?????????????????????????????????????????????????? | | ?????????????????????????????????????????????????? | | ?????????????????????????????????????????????????? | | ?????????????????????????????????????????????????? | | ?????????????????????????????????????????????????? | | ?????????????????????????????????????????????????? | | ?????????????????????????????????????????????????? | | ????????????????????????????###??????????????????? | | ?????????????????????????### ###????????????????? | | ???????????????????????## ##???????????????? | | ??###################??# ???"#???????????? | | ??"""##"""##""|##"""#??# ! !=#??<%&???????????? | | ?#"" ##"" ##""|##!!"#### == !=%###j%[##??????????? | | ?#"" ![!%=%[pg==%!#??????????? | | ?# %* *= %!=[*![ #??????????? | | ?####################### =[=!%[;##??????????????? | | ???????????????????????# !j==/*#?????????????????? | | ??#######?????????????## =%! #???????????????????? | | ?#""""""#?????????????# !@!# #???????????????????? | | ?#""""""#????########### =%! #???????????????????? | | ?#"" "#????#"""""""""# !%#######???????????????? | | ?#"" "#????# " " " ## # #???????????????? | | ?#"" "#????# ## %# #???????????????? | | ?#"" "#????# "#??" #;/%# #???????????????? | | ?#" ["#????# "#??" ## # #???????????????? | | ?#"""| "###"## "###" ## # #???????????????? | | ?# # """"" #; # #???????????????? | | ?# # ## # #???????????????? | | ?# # * ## # #???????????????? | | ?###### ###########%##### ## ####???????????????? | | ####### ###########=##### ## #########??????????? | | """"""" """"""""""" """"" "" "## / #??????????? | | "## ] #??????????? | | "## ####??????????? | | "## = #??????????? | | "## ! #??????????? | | [#??????????? | | """"""""""""""""""""""""" "## ####??????????? | | """"""""""""""""""""""""" "## ] ???????????? | | ##### ################""= !%"## **#??????????? | | ##????????#"!%! "#########?????????? | | X"#????????#"[[! "#??? """"?????????? | | "" "" ##????????#" "#?? ""#????????? | +----------------------------------------------------+ Best States ------------- Heat Dissipation 39 Energy Generation 14 Energy Capacity 250 Matter Stores 300 Matter Capacity 300 Sight Range 16 Terrain Scan Density 10 Armor Coverage 100 Evasion (%) 55 Item Schematics ----------------- None Robot Schematics ------------------ None Fabricated ------------ Nothing Repaired ---------- Nothing Alien Tech Used ----------------- None Achievements -------------- None Challenges ------------ None Game ------ Seed OvertunedLauncherProjector Manual? 0 Play Time 00:54:35 Cumulative 279.9 hours Start 2025.09.11 @ 11:45:42 End 2025.09.11 @ 16:26:17 Sessions 1 Manual Loads 0 Difficulty Rogue Special Mode None Game No. 433 Rogue 433 Adventurer 0 Explorer 0 Win Type - Total 1 Types 1/0/0/0/0/0/0/0/0/0 Lore% 66 Gallery% 63 Achievement% 44 Wizard Run 0 Options --------- Layout 1 ASCII 0 Keyboard 0 Movement Mouse Keybinds 0 Fullscreen 2 Font 24/Smallcaps Map View 50x35 Zoom Use 0% Tactical HUD 1 Map Filters NONE Filters NONE Steam X RUN: 3e468622-c693-4af4-ba40-14da3eb29df5